fUSD/lending_fUSD_20240831
["ID","MTS","AMOUNT","RATE_DAILY","PERIOD"]
[336752256,1725097832263,-150.0,0.00024786,2]
[336752257,1725097832273,-392.6731,0.000248,2]
[336752258,1725097832283,-213.7494,0.000248,2]
[336752259,1725097832292,-1928.19494887,0.000248,2]
[336752260,1725097832304,-396.91072713,0.000248,2]
[336752261,1725097832316,-883.99485179,0.000248,2]
[336752262,1725097832326,-416.99514821,0.00024811,2]
[336752264,1725097837637,-2177.83371715,0.00024811,2]
[336752265,1725097837698,-614.27166242,0.00024811,2]
[336752266,1725097837708,-2450.97833758,0.00024822,2]
[336752267,1725097837721,-758.1221902,0.00024822,2]
[336752268,1725097837731,-696.31351427,0.00024825,2]
[336752269,1725097837932,-137.92478573,0.00024825,2]
[336752270,1725097837942,-6173.21471361,0.00024825,2]
[336752271,1725097837953,-1000.0,0.00024825,2]
[336752278,1725097839621,-4983.14870192,0.00024825,2]
[336752282,1725097842412,-320.82175,0.00023,11]
[336752306,1725097843767,-179.17825,0.00023,11]
[336752307,1725097843776,-7462.24908447,0.00024825,2]
[336752308,1725097843786,-801.5619,0.00024825,2]
[336752309,1725097843796,-150.0,0.00024826,2]
[336752310,1725097843806,-150.0,0.00024829,2]
[336752311,1725097843816,-3209.10052778,0.00024833,2]
[336752312,1725097843825,-3209.10052778,0.00024844,2]
[336752313,1725097843834,-3209.10052778,0.00024856,2]
[336752314,1725097843844,-3209.10052778,0.00024867,2]
[336752315,1725097843853,-150.0,0.0002487,2]
[336752316,1725097843863,-3209.10052778,0.00024878,2]
[336752317,1725097843872,-3209.10052778,0.00024889,2]
[336752318,1725097843883,-1000.0,0.0002489,2]
[336752319,1725097843892,-150.0,0.0002489,2]
[336752320,1725097843902,-329.68,0.0002489,3]
[336752321,1725097843911,-150.0,0.00024894,2]
[336752322,1725097843920,-170.22343452,0.00024897,2]
[336752323,1725097843930,-170.22343452,0.00024898,2]
[336752324,1725097843939,-170.22343452,0.00024898,2]
[336752325,1725097843948,-303.15021676,0.00024899,2]
[336752326,1725097843958,-1000.0,0.00024899,2]
[336752327,1725097843967,-303.15021676,0.00024899,2]
[336752328,1725097843977,-170.22343452,0.00024899,2]
[336752329,1725097843986,-303.15021676,0.00024899,2]
[336752330,1725097843995,-303.15021676,0.000249,2]
[336752331,1725097844005,-27648.44527916,0.000249,2]
[336752332,1725097844017,-7095.74972084,0.000249,2]
[336752333,1725097844027,-352.5639,0.000249,2]
[336752334,1725097844036,-1419.9103,0.000249,2]
[336752335,1725097844047,-35958.3488,0.000249,2]
[336752336,1725097844056,-1423.1191,0.000249,2]
[336752337,1725097844066,-152.79080492,0.000249,2]
[336752338,1725097844075,-261.5692,0.000249,2]
[336752339,1725097844084,-170.22343452,0.000249,2]
[336752340,1725097844093,-303.15021676,0.000249,2]
[336752341,1725097844102,-3209.10052778,0.000249,2]
[336752342,1725097844111,-47632.80208538,0.00024925,2]
[336752343,1725097844121,-1600.0,0.00024935,2]
[336752344,1725097844130,-150.0,0.00024964,2]
[336752345,1725097844139,-150.0,0.00024969,2]
[336752346,1725097844148,-318.1891464,0.00024973,2]
[336752347,1725097844157,-158.0939784,0.00024973,2]
[336752348,1725097844167,-150.0,0.00024973,2]
[336752349,1725097844176,-150.0,0.00024989,2]
[336752350,1725097844185,-2500.0,0.00024989,5]
[336752351,1725097844194,-2500.0,0.00024996,5]
[336752352,1725097844204,-1000.0,0.00024999,2]
[336752353,1725097844214,-614.0,0.00024999,2]
[336752354,1725097844223,-2500.0,0.00025,5]
[336752355,1725097844232,-7625.26412189,0.00025,2]
[336752356,1725097844241,-20033.00775379,0.00025,15]
[336752357,1725097844253,-8079.65064912,0.00025,15]
[336752361,1725097925675,-1449.6,0.00034592,120]
[336752362,1725097925741,-413.76795226,0.00036986,60]
[336752363,1725097925805,-500.0,0.00038356,120]
[336752364,1725097925868,-500.0,0.00038356,120]
[336752365,1725097925929,-500.0,0.00038356,120]
[336752366,1725097925991,-500.0,0.00038356,120]
[336752367,1725097926051,-500.0,0.00038356,120]
[336752368,1725097926113,-500.0,0.00038356,120]
[336752369,1725097926174,-500.0,0.00038356,120]
[336752370,1725097926235,-500.0,0.00038356,120]
[336752371,1725097926298,-500.0,0.00038356,120]
[336752372,1725097926361,-500.0,0.00038356,120]
[336752373,1725097926424,-500.0,0.00038356,120]
[336752374,1725097926485,-500.0,0.00038356,120]
[336752375,1725097926550,-614.01,0.00038356,120]
[336752376,1725097926613,-500.0,0.00038356,120]
[336752377,1725097926676,-1320.12,0.00038356,120]
[336752378,1725097926740,-546.31,0.00038356,120]
[336752379,1725097926803,-500.0,0.00038356,120]
[336752380,1725097926865,-500.0,0.00038356,120]
[336752381,1725097926927,-500.0,0.00038356,120]
[336752382,1725097926990,-500.0,0.00038356,120]
[336752383,1725097927052,-500.0,0.00038356,120]
[336752384,1725097927115,-500.0,0.00038904,120]
[336752385,1725097927180,-500.0,0.00038904,120]
[336752386,1725097927244,-500.0,0.00038904,120]
[336752387,1725097927315,-500.0,0.00038904,120]
[336752388,1725097927380,-500.0,0.00038904,120]
[336752389,1725097927618,-500.0,0.00038904,120]
[336752390,1725097927680,-500.0,0.00038904,120]
[336752391,1725097927740,-500.0,0.00038904,120]
[336752392,1725097927799,-500.0,0.00038904,120]
[336752393,1725097927860,-500.0,0.00038904,120]
[336752394,1725097927922,-500.0,0.00038904,120]
[336752395,1725097927985,-500.0,0.00038904,120]
[336752396,1725097928046,-614.01,0.00038904,120]
[336752397,1725097928108,-500.0,0.00038904,120]
[336752398,1725097928170,-1320.12,0.00038904,120]
[336752399,1725097928232,-546.31,0.00038904,120]
[336752400,1725097928294,-500.0,0.00038904,120]
[336752401,1725097928355,-500.0,0.00038904,120]
[336752402,1725097928416,-500.0,0.00038904,120]
[336752403,1725097928478,-500.0,0.00038904,120]
[336752404,1725097928541,-500.0,0.00038904,120]
[336752405,1725097928603,-500.0,0.00039452,120]
[336752406,1725097928663,-500.0,0.00039452,120]
[336752407,1725097928723,-500.0,0.00039452,120]
[336752408,1725097928785,-500.0,0.00039452,120]
[336752409,1725097928846,-500.0,0.00039452,120]
[336752410,1725097928906,-500.0,0.00039452,120]
[336752411,1725097928967,-500.0,0.00039452,120]
[336752412,1725097929026,-500.0,0.00039452,120]
[336752413,1725097929089,-500.0,0.00039452,120]
[336752414,1725097929151,-500.0,0.00039452,120]
[336752415,1725097929215,-384.37853427,0.00039452,120]
[336752416,1725097929281,-500.0,0.00039452,120]
[336752417,1725097929351,-614.01,0.00039452,120]
[336752418,1725097929412,-500.0,0.00039452,120]
[336752419,1725097929477,-1320.12,0.00039452,120]
[336752420,1725097929548,-546.31,0.00039452,120]
[336752421,1725097929613,-500.0,0.00039452,120]
[336752422,1725097929678,-500.0,0.00039452,120]
[336752423,1725097929745,-500.0,0.00039452,120]
[336752424,1725097929811,-500.0,0.00039452,120]
[336752425,1725097929874,-500.0,0.00039452,120]
[336752426,1725097929936,-410.0,0.00039886,90]
[336752427,1725097929997,-410.0,0.00039986,90]
[336752428,1725097930060,-500.0,0.0004,120]
[336752429,1725097930120,-500.0,0.0004,120]
[336752430,1725097930178,-500.0,0.0004,120]
[336752431,1725097930237,-500.0,0.0004,120]
[336752432,1725097930295,-500.0,0.0004,120]
[336752433,1725097930352,-500.0,0.0004,120]
[336752434,1725097930409,-500.0,0.0004,120]
[336752435,1725097930466,-500.0,0.0004,120]
[336752436,1725097930524,-158.80903235,0.0004,120]
[336752437,1725097930583,-500.0,0.0004,120]
[336752438,1725097930641,-500.0,0.0004,120]
[336752439,1725097930706,-614.01,0.0004,120]
[336752440,1725097930766,-500.0,0.0004,120]
[336752441,1725097930827,-1320.12,0.0004,120]
[336752442,1725097930888,-546.31,0.0004,120]
[336752443,1725097930950,-500.0,0.0004,120]
[336752444,1725097931010,-500.0,0.0004,120]
[336752445,1725097931070,-500.0,0.0004,120]
[336752446,1725097931133,-500.0,0.0004,120]
[336752447,1725097931195,-500.0,0.0004,120]
[336752448,1725097931257,-500.0,0.00040547,120]
[336752449,1725097931320,-500.0,0.00040547,120]
[336752450,1725097931382,-500.0,0.00040547,120]
[336752451,1725097931445,-549.48411552,0.00040547,120]
[336752452,1725097931508,-500.0,0.00040547,120]
[336752453,1725097931570,-181.48371988,0.00040547,120]
[336752454,1725097931631,-500.0,0.00040547,120]
[336752455,1725097931693,-500.0,0.00040547,120]
[336752456,1725097931752,-500.0,0.00040547,120]
[336752457,1725097931814,-500.0,0.00040547,120]
[336752458,1725097931875,-614.01,0.00040547,120]
[336752459,1725097931937,-500.0,0.00040547,120]
[336752460,1725097932001,-1320.12,0.00040547,120]
[336752461,1725097932065,-546.31,0.00040547,120]
[336752462,1725097932129,-500.0,0.00040547,120]
[336752463,1725097932193,-500.0,0.00040547,120]
[336752464,1725097932255,-500.0,0.00040547,120]
[336752465,1725097932320,-500.0,0.00040547,120]
[336752466,1725097932385,-500.0,0.00040547,120]
[336752467,1725097932449,-500.0,0.00041095,120]
[336752468,1725097932512,-500.0,0.00041095,120]
[336752469,1725097932575,-500.0,0.00041095,120]
[336752470,1725097932638,-500.0,0.00041095,120]
[336752471,1725097932704,-500.0,0.00041095,120]
[336752472,1725097932765,-500.0,0.00041095,120]
[336752473,1725097932824,-500.0,0.00041095,120]
[336752474,1725097932893,-500.0,0.00041095,120]
[336752475,1725097932951,-614.01,0.00041095,120]
[336752476,1725097933012,-500.0,0.00041095,120]
[336752477,1725097933077,-1320.12,0.00041095,120]
[336752478,1725097933146,-546.31,0.00041095,120]
[336752479,1725097933209,-500.0,0.00041095,120]
[336752480,1725097933274,-628.93324607,0.00041095,120]
[336752481,1725097933341,-500.0,0.00041095,120]
[336752482,1725097933406,-500.0,0.00041095,120]
[336752483,1725097933469,-500.0,0.00041095,120]
[336752484,1725097933532,-500.0,0.00041643,120]
[336752485,1725097933593,-500.0,0.00041643,120]
[336752486,1725097933655,-500.0,0.00041643,120]
[336752487,1725097933717,-500.0,0.00041643,120]
[336752488,1725097933779,-500.0,0.00041643,120]
[336752489,1725097933841,-500.0,0.00041643,120]
[336752490,1725097933901,-500.0,0.00041643,120]
[336752491,1725097933963,-205.41040273,0.00041643,120]
[336752492,1725097934149,-614.01,0.00041643,120]
[336752493,1725097934210,-500.0,0.00041643,120]
[336752494,1725097934272,-1320.12,0.00041643,120]
[336752495,1725097934332,-546.31,0.00041643,120]
[336752496,1725097934395,-500.0,0.00041643,120]
[336752497,1725097934456,-590.93319399,0.00041643,120]
[336752498,1725097934518,-296.3168023,0.00041643,120]
[336752499,1725097934578,-500.0,0.00041643,120]
[336752500,1725097934640,-500.0,0.00042191,120]
[336752501,1725097934705,-500.0,0.00042191,120]
[336752502,1725097934765,-500.0,0.00042191,120]
[336752503,1725097934827,-500.0,0.00042191,120]
[336752504,1725097934889,-467.85853672,0.00042191,120]
[336752505,1725097934951,-500.0,0.00042191,120]
[336752506,1725097935014,-500.0,0.00042191,120]
[336752507,1725097935078,-614.01,0.00042191,120]
[336752508,1725097935141,-500.0,0.00042191,120]
[336752509,1725097935208,-1320.12,0.00042191,120]
[336752510,1725097935275,-546.31,0.00042191,120]
[336752511,1725097935343,-500.0,0.00042191,120]
[336752512,1725097935408,-500.0,0.00042739,120]
[336752513,1725097935470,-500.0,0.00042739,120]
[336752514,1725097935534,-500.0,0.00042739,120]
[336752515,1725097935594,-500.0,0.00042739,120]
[336752516,1725097935655,-500.0,0.00042739,120]
[336752517,1725097935715,-500.0,0.00042739,120]
[336752518,1725097935777,-614.01,0.00042739,120]
[336752519,1725097935840,-500.0,0.00042739,120]
[336752520,1725097935901,-1320.12,0.00042739,120]
[336752521,1725097935961,-546.31,0.00042739,120]
[336752522,1725097936021,-500.0,0.00042739,120]
[336752523,1725097936085,-500.0,0.00043287,120]
[336752524,1725097936154,-500.0,0.00043287,120]
[336752525,1725097936217,-500.0,0.00043287,120]
[336752526,1725097936281,-500.0,0.00043287,120]
[336752527,1725097936346,-500.0,0.00043287,120]
[336752528,1725097936409,-500.0,0.00043287,120]
[336752529,1725097936470,-614.01,0.00043287,120]
[336752530,1725097936535,-500.0,0.00043287,120]
[336752531,1725097936604,-1320.12,0.00043287,120]
[336752532,1725097936669,-546.31,0.00043287,120]
[336752533,1725097936731,-500.0,0.00043287,120]
[336752534,1725097936791,-2035.0,0.00043597,97]
[336752535,1725097936853,-500.0,0.00043835,120]
[336752536,1725097936918,-329.46129848,0.00043835,120]
[336752537,1725097936983,-500.0,0.00043835,120]
[336752538,1725097937044,-500.0,0.00043835,120]
[336752539,1725097937106,-500.0,0.00043835,120]
[336752540,1725097937165,-500.0,0.00043835,120]
[336752541,1725097937225,-614.01,0.00043835,120]
[336752542,1725097937287,-500.0,0.00043835,120]
[336752543,1725097937351,-1320.12,0.00043835,120]
[336752544,1725097937414,-546.31,0.00043835,120]
[336752545,1725097937478,-500.0,0.00043835,120]
[336752546,1725097937541,-403.10801974,0.00044383,120]
[336752547,1725097937603,-500.0,0.00044383,120]
[336752548,1725097937665,-500.0,0.00044383,120]
[336752549,1725097937727,-500.0,0.00044383,120]
[336752550,1725097937791,-500.0,0.00044383,120]
[336752551,1725097937853,-614.01,0.00044383,120]
[336752552,1725097937915,-500.0,0.00044383,120]
[336752553,1725097937977,-1320.12,0.00044383,120]
[336752554,1725097938041,-546.31,0.00044383,120]
[336752555,1725097938105,-500.0,0.00044383,120]
[336752556,1725097938169,-500.0,0.00044931,120]
[336752557,1725097938231,-500.0,0.00044931,120]
[336752558,1725097938292,-500.0,0.00044931,120]
[336752559,1725097938359,-500.0,0.00044931,120]
[336752560,1725097938417,-614.01,0.00044931,120]
[336752561,1725097938476,-500.0,0.00044931,120]
[336752562,1725097938537,-1320.12,0.00044931,120]
[336752563,1725097938600,-546.31,0.00044931,120]
[336752564,1725097938660,-500.0,0.00044931,120]
[336752565,1725097938721,-500.0,0.00045479,120]
[336752566,1725097938783,-500.0,0.00045479,120]
[336752567,1725097938844,-500.0,0.00045479,120]
[336752568,1725097938904,-500.0,0.00045479,120]
[336752569,1725097938963,-614.01,0.00045479,120]
[336752570,1725097939023,-500.0,0.00045479,120]
[336752571,1725097939084,-1320.12,0.00045479,120]
[336752572,1725097939146,-546.31,0.00045479,120]
[336752573,1725097939205,-500.0,0.00045479,120]
[336752574,1725097939265,-1449.6,0.00045825,120]
[336752575,1725097939325,-500.0,0.00046027,120]
[336752576,1725097939386,-252.09077636,0.00046027,120]
[336752577,1725097939446,-500.0,0.00046027,120]
[336752578,1725097939505,-500.0,0.00046027,120]
[336752579,1725097939565,-614.01,0.00046027,120]
[336752580,1725097939625,-219.13172474,0.00046027,120]
[336752581,1725097939685,-1320.12,0.00046027,120]
[336752582,1725097939745,-546.31,0.00046027,120]
[336752583,1725097939806,-500.0,0.00046027,120]
[336752584,1725097939866,-500.0,0.00046575,120]
[336752585,1725097939926,-500.0,0.00046575,120]
[336752586,1725097939988,-500.0,0.00046575,120]
[336752587,1725097940048,-614.01,0.00046575,120]
[336752588,1725097940111,-1320.12,0.00046575,120]
[336752589,1725097940172,-546.31,0.00046575,120]
[336752590,1725097940232,-500.0,0.00046575,120]
[336752591,1725097940293,-241086.52065604,0.000468,120]
[336752592,1725097940356,-500.0,0.00047123,120]
[336752593,1725097940416,-356.14222335,0.00047123,120]
[336752594,1725097940475,-500.0,0.00047123,120]
[336752595,1725097940534,-614.01,0.00047123,120]
[336752596,1725097940719,-1320.12,0.00047123,120]
[336752597,1725097940777,-546.31,0.00047123,120]
[336752598,1725097940835,-500.0,0.00047123,120]
[336752599,1725097940894,-500.0,0.00047671,120]
[336752600,1725097940951,-500.0,0.00047671,120]
[336752601,1725097941010,-614.01,0.00047671,120]
[336752602,1725097941070,-1320.12,0.00047671,120]
[336752603,1725097941132,-546.31,0.00047671,120]
[336752604,1725097941190,-500.0,0.00047671,120]
[336752605,1725097941250,-410.0,0.00047886,120]
[336752606,1725097941313,-410.0,0.00047986,120]
[336752607,1725097941373,-469.42746395,0.00048219,120]
[336752608,1725097941432,-500.0,0.00048219,120]
[336752609,1725097941491,-614.01,0.00048219,120]
[336752610,1725097941554,-1320.12,0.00048219,120]
[336752611,1725097941616,-546.31,0.00048219,120]
[336752612,1725097941675,-500.0,0.00048219,120]
[336752613,1725097941737,-523.6343444,0.00048767,120]
[336752614,1725097941797,-614.01,0.00048767,120]
[336752615,1725097941858,-1320.12,0.00048767,120]
[336752616,1725097941920,-546.31,0.00048767,120]
[336752617,1725097941980,-500.0,0.00048767,120]
[336752618,1725097942042,-4478.1,0.00048811,117]
[336752619,1725097942108,-318.9814491,0.00049315,120]
[336752620,1725097942171,-614.01,0.00049315,120]
[336752621,1725097942232,-2012.93361575,0.00049315,120]
[336752622,1725097942297,-1320.12,0.00049315,120]
[336752623,1725097942363,-546.31,0.00049315,120]
[336752624,1725097942427,-500.0,0.00049315,120]
[336752625,1725097942491,-397.27125543,0.00049315,120]
[336752626,1725097942557,-12012.55599424,0.0004949,120]
[336752627,1725097942617,-500.0,0.00049589,120]
[336752628,1725097942680,-614.01,0.00049863,120]
[336752629,1725097942742,-1320.12,0.00049863,120]
[336752630,1725097942803,-546.31,0.00049863,120]
[336752631,1725097942866,-500.0,0.00049863,120]
[336752632,1725097942929,-290000.0,0.0005,120]
[336752633,1725097942989,-500.0,0.00050136,120]
[336752634,1725097943052,-614.01,0.0005041,120]
[336752635,1725097943116,-1320.12,0.0005041,120]
[336752636,1725097943180,-546.31,0.0005041,120]
[336752637,1725097943242,-629.77531165,0.0005041,120]
[336752638,1725097943309,-614.07715631,0.00050958,120]
[336752639,1725097943376,-1320.27719981,0.00050958,120]
[336752640,1725097943441,-546.3526784,0.00050958,120]
[336752641,1725097943507,-321.54353173,0.00051,120]
[336752642,1725097943572,-1463.27763,0.0005198,59]
[336752643,1725097943637,-350763.24370298,0.00052,120]
[336752644,1725097943705,-1087.06634789,0.00052,120]
[336752645,1725097943770,-1000.0,0.00052,120]
[336752646,1725097943837,-1463.27763,0.00052,59]
[336752647,1725097943910,-2187.81,0.00052054,120]
[336752648,1725097943978,-151.0,0.00052466,120]
[336752649,1725097944045,-590.64,0.00052602,120]
[336752650,1725097944111,-2187.81,0.00052602,120]
[336752651,1725097944174,-300.0,0.0005287,120]
[336752652,1725097944238,-1000.0,0.00052999,120]
[336752653,1725097944303,-200.0,0.00053,120]
[336752654,1725097944369,-2187.81,0.0005315,120]
[336752655,1725097944432,-590.64,0.00053424,120]
[336752656,1725097944499,-847.11806957,0.00053448,120]
[336752657,1725097944568,-847.11806957,0.00053452,120]
[336752658,1725097944635,-171.08351966,0.00053456,120]
[336752659,1725097944705,-815.57329647,0.00053461,120]
[336752660,1725097944773,-19242.33979676,0.00053465,120]
[336752661,1725097944841,-191.27933755,0.00053466,120]
[336752662,1725097944913,-171.08351966,0.00053466,120]
[336752663,1725097944983,-19242.33979676,0.00053468,120]
[336752664,1725097945056,-19242.33979676,0.00053478,120]
[336752665,1725097945128,-19242.33979676,0.00053502,120]
[336752666,1725097945192,-1353.02707687,0.00053503,120]
[336752667,1725097945255,-171.08351966,0.00053506,120]
[336752668,1725097945320,-171.08351966,0.00053512,120]
[336752669,1725097945386,-815.57329647,0.00053512,120]
[336752670,1725097945449,-272.34768353,0.00053514,120]
[336752671,1725097945512,-815.57329647,0.00053515,120]
[336752672,1725097945574,-847.11806957,0.00053516,120]
[336752673,1725097945637,-1353.02707687,0.00053524,120]
[336752674,1725097945699,-191.27933755,0.00053541,120]
[336752675,1725097945758,-191.27933755,0.00053544,120]
[336752676,1725097945820,-815.57329647,0.00053564,120]
[336752677,1725097945879,-1353.02707687,0.00053566,120]
[336752678,1725097945938,-847.11806957,0.00053566,120]
[336752679,1725097946000,-191.27933755,0.00053579,120]
[336752680,1725097946065,-815.57329647,0.0005358,120]
[336752681,1725097946131,-171.08351966,0.00053581,120]
[336752682,1725097946197,-1353.02707687,0.00053584,120]
[336752683,1725097946265,-847.11806957,0.00053585,120]
[336752684,1725097946332,-151.0,0.00053589,120]
[336752685,1725097946401,-19242.33979676,0.00053593,120]
[336752686,1725097946465,-191.27933755,0.00053595,120]
[336752687,1725097946528,-1353.02707687,0.00053598,120]
[336752688,1725097946589,-2187.81,0.00053698,120]
[336752689,1725097946655,-2174.6138115,0.00054,90]
[336752690,1725097946716,-600.0,0.00054,120]
[336752691,1725097946778,-1000.0,0.00054,120]
[336752692,1725097946837,-4885.2,0.00054024,117]
[336752693,1725097946897,-590.64,0.00054246,120]
[336752694,1725097946954,-2187.81,0.00054246,120]
[336752695,1725097947012,-1463.27763,0.0005448,70]
[336752696,1725097947073,-151.0,0.00054712,120]
[336752697,1725097947135,-2187.81,0.00054794,120]
[336752698,1725097947195,-3177.46,0.00054794,120]
[336752699,1725097947260,-3177.46,0.00054794,120]
[336752700,1725097947325,-3177.46,0.00054794,120]
[336752701,1725097947390,-3177.46,0.00054794,120]
[336752702,1725097947454,-3177.46,0.00054794,120]
[336752703,1725097947516,-3177.46,0.00054794,120]
[336752704,1725097947579,-3177.46,0.00054794,120]
[336752705,1725097947643,-3177.46,0.00054794,120]
[336752706,1725097947709,-3177.46,0.00054794,120]
[336752707,1725097947768,-3177.46,0.00054794,120]
[336752708,1725097947827,-3177.46,0.00054794,120]
[336752709,1725097947885,-3177.46,0.00054794,120]
[336752710,1725097947946,-3177.46,0.00054794,120]
[336752711,1725097948007,-3177.46,0.00054794,120]
[336752712,1725097948066,-3177.46,0.00054794,120]
[336752713,1725097948129,-3177.46,0.00054794,120]
[336752714,1725097948189,-3177.46,0.00054794,120]
[336752715,1725097948248,-3177.46,0.00054794,120]
[336752716,1725097948309,-3177.46,0.00054794,120]
[336752717,1725097948367,-3177.46,0.00054794,120]
[336752718,1725097948426,-3177.46,0.00054794,120]
[336752719,1725097948485,-3177.46,0.00054794,120]
[336752720,1725097948545,-3177.46,0.00054794,120]
[336752721,1725097948605,-3177.63201314,0.00054794,120]
[336752722,1725097948664,-1086.09716288,0.00054794,120]
[336752723,1725097948724,-540.0,0.00054795,120]
[336752724,1725097948786,-740.0,0.00054795,120]
[336752725,1725097948844,-803.0,0.00054795,120]
[336752726,1725097949039,150.0,0.00040547,120]
[336752727,1725097949108,150.0,0.00041095,120]
[336752728,1725097949176,500.0,0.00038356,120]
[336752729,1725097949245,500.0,0.00038904,120]
[336752730,1725097949344,528.68750227,0.00039452,120]
[336752731,1725097949413,150.0,0.00041643,120]
[336752732,1725097949553,157433.19653936,0.00045479,120]
[336752733,1725097949772,500.0,0.00038356,120]
[336752734,1725097949967,500.0,0.00038904,120]
[336752735,1725097950059,158.33165825,0.00039452,120]
[336752736,1725097950296,160.0,0.00048,90]
[336752737,1725097956393,500.0,0.00038356,120]
[336752738,1725097956644,500.0,0.00038904,120]
[336752739,1725097956900,500.0,0.00039452,120]
[336752740,1725097957174,500.0,0.0004,120]
[336752741,1725097957435,500.0,0.00040547,120]
[336752742,1725097957679,500.0,0.00041095,120]
[336752743,1725097957977,500.0,0.00041643,120]
[336752744,1725097958252,500.0,0.00042191,120]
[336752745,1725097958516,500.0,0.00042739,120]
[336752746,1725097958773,500.0,0.00043287,120]
[336752747,1725097959117,500.0,0.00043835,120]
[336752748,1725097959312,500.0,0.00044383,120]
[336752749,1725097959579,500.0,0.00044931,120]
[336752750,1725097960224,536.1004705,0.00045479,120]
[336752751,1725097962598,500.0,0.00038356,120]
[336752752,1725097962848,500.0,0.00038904,120]
[336752753,1725097963115,500.0,0.00039452,120]
[336752754,1725097963382,500.0,0.0004,120]
[336752755,1725097963651,500.0,0.00040547,120]
[336752756,1725097963910,500.0,0.00041095,120]
[336752757,1725097964170,500.0,0.00041643,120]
[336752758,1725097964437,477.54789925,0.00042191,120]
[336752759,1725097969421,500.0,0.00038356,120]
[336752760,1725097970007,500.0,0.00038904,120]
[336752761,1725097970284,500.0,0.00039452,120]
[336752762,1725097970563,500.0,0.0004,120]
[336752763,1725097970814,500.0,0.00040547,120]
[336752764,1725097971077,500.0,0.00041095,120]
[336752765,1725097971335,500.0,0.00041643,120]
[336752766,1725097971604,500.0,0.00042191,120]
[336752767,1725097971871,500.0,0.00042739,120]
[336752768,1725097972131,500.0,0.00043287,120]
[336752769,1725097972429,604.78019178,0.00043835,120]
[336752770,1725097991503,500.0,0.00038356,120]
[336752771,1725097991786,500.0,0.00038904,120]
[336752772,1725097992084,155.82622098,0.00039452,120]
[336752773,1725097995475,500000.0,0.00054795,120]
[336752774,1725097997972,500.0,0.00038356,120]
[336752775,1725097998251,500.0,0.00038904,120]
[336752776,1725097998524,500.0,0.00039452,120]
[336752777,1725097998808,500.0,0.0004,120]
[336752778,1725097999098,500.0,0.00040547,120]
[336752779,1725097999363,500.0,0.00041095,120]
[336752780,1725097999639,500.0,0.00041643,120]
[336752781,1725097999962,439.24989536,0.00042191,120]
[336752782,1725098004326,500.0,0.00038356,120]
[336752783,1725098004649,500.0,0.00038904,120]
[336752784,1725098004914,500.0,0.00039452,120]
[336752785,1725098005181,500.0,0.0004,120]
[336752786,1725098005479,620.89261173,0.00040547,120]
[336752787,1725098005953,511.421637,0.00044,57]
[336752788,1725098012513,400.0,0.00026538,120]
[336752789,1725098012852,400.0,0.00029487,120]
[336752790,1725098013225,400.0,0.00032435,120]
[336752791,1725098013608,400.0,0.00035384,120]